fUST/lending_fUST_20240430
["ID","MTS","AMOUNT","RATE_DAILY","PERIOD"]
[324949351,1714458650009,-500.0,0.00032602,2]
[324949352,1714458650019,-500.0,0.00032602,2]
[324949353,1714458650028,-500.0,0.00032602,2]
[324949354,1714458650037,-500.0,0.00032602,2]
[324949355,1714458650046,-278.98389744,0.00032602,2]
[324949356,1714458650056,-500.0,0.00032602,2]
[324949357,1714458650065,-546.35,0.00032602,2]
[324949358,1714458650074,-500.0,0.00032602,2]
[324949359,1714458650083,-500.0,0.00032602,2]
[324949360,1714458650093,-562.19195369,0.00032602,2]
[324949361,1714458650102,-500.0,0.00032602,2]
[324949362,1714458650111,-500.0,0.00032602,2]
[324949363,1714458650120,-500.0,0.00032602,2]
[324949364,1714458650130,-500.0,0.00032602,2]
[324949365,1714458650139,-500.0,0.00032602,2]
[324949366,1714458650148,-500.0,0.00032602,2]
[324949367,1714458650158,-500.0,0.00032602,2]
[324949368,1714458650167,-500.0,0.00032602,2]
[324949369,1714458650177,-500.0,0.00032602,2]
[324949370,1714458650186,-500.0,0.00032602,2]
[324949371,1714458650195,-500.0,0.00032602,2]
[324949372,1714458650204,-500.0,0.00032602,2]
[324949373,1714458650213,-500.0,0.00032602,2]
[324949374,1714458650223,-500.0,0.00032602,2]
[324949375,1714458650232,-500.0,0.00032602,2]
[324949376,1714458650241,-500.0,0.00032602,2]
[324949377,1714458650251,-500.0,0.00032602,2]
[324949378,1714458650260,-500.0,0.00032602,2]
[324949379,1714458650269,-500.0,0.00032602,2]
[324949380,1714458650278,-500.0,0.00032602,2]
[324949381,1714458650287,-500.0,0.00032602,2]
[324949382,1714458650297,-500.0,0.00032602,2]
[324949383,1714458650307,-500.0,0.00032602,2]
[324949384,1714458650316,-500.0,0.00032602,2]
[324949385,1714458650325,-500.0,0.00032602,2]
[324949386,1714458650334,-500.0,0.00032602,2]
[324949387,1714458650343,-500.0,0.00032602,2]
[324949388,1714458650352,-500.0,0.00032602,2]
[324949389,1714458650361,-671.33,0.00032602,2]
[324949390,1714458650371,-344.2782891,0.00032602,2]
[324949391,1714458650380,-500.0,0.00032602,2]
[324949392,1714458650388,-593.61,0.00032602,2]
[324949393,1714458650398,-500.0,0.00032602,2]
[324949394,1714458650407,-594.91,0.00032602,2]
[324949395,1714458650416,-500.0,0.00032602,2]
[324949396,1714458650425,-500.0,0.00032602,2]
[324949397,1714458650435,-500.0,0.00032602,2]
[324949398,1714458650445,-515.85,0.00032602,2]
[324949399,1714458650454,-500.0,0.00032602,2]
[324949400,1714458650464,-500.0,0.00032602,2]
[324949401,1714458650473,-500.0,0.00032602,2]
[324949402,1714458650482,-500.0,0.00032602,2]
[324949403,1714458650491,-500.0,0.00032602,2]
[324949404,1714458650502,-500.0,0.00032602,2]
[324949405,1714458650512,-637.39,0.00032602,2]
[324949406,1714458650522,-500.0,0.00032602,2]
[324949407,1714458650532,-632.86,0.00032602,2]
[324949408,1714458650542,-500.0,0.00032602,2]
[324949409,1714458650552,-500.0,0.00032602,2]
[324949410,1714458650562,-500.0,0.00032602,2]
[324949411,1714458650572,-500.0,0.00032602,2]
[324949412,1714458650581,-500.0,0.00032602,2]
[324949413,1714458650591,-382.86747238,0.00032602,2]
[324949414,1714458650601,-500.0,0.00032602,2]
[324949415,1714458650610,-500.0,0.00032602,2]
[324949416,1714458650620,-500.0,0.00032602,2]
[324949417,1714458650630,-500.0,0.00032602,2]
[324949418,1714458650639,-520.5,0.00032602,2]
[324949419,1714458650648,-500.0,0.00032602,2]
[324949420,1714458650658,-500.0,0.00032602,2]
[324949421,1714458650667,-500.0,0.00032602,2]
[324949422,1714458650677,-500.0,0.00032602,2]
[324949423,1714458650687,-500.0,0.00032602,2]
[324949424,1714458650696,-500.0,0.00032602,2]
[324949425,1714458650706,-500.0,0.00032602,2]
[324949426,1714458650715,-500.0,0.00032602,2]
[324949427,1714458650725,-542.51,0.00032602,2]
[324949428,1714458650734,-500.0,0.00032602,2]
[324949429,1714458650744,-500.0,0.00032602,2]
[324949430,1714458650757,-684.13,0.00032602,2]
[324949431,1714458650766,-500.0,0.00032602,2]
[324949432,1714458650775,-448.58012999,0.00032602,2]
[324949433,1714458650785,-1829.17,0.00032602,2]
[324949434,1714458650795,-684.54,0.00032602,2]
[324949435,1714458650804,-500.0,0.00032602,2]
[324949436,1714458650814,-656.56,0.00032602,2]
[324949437,1714458650823,-502.20110562,0.00032602,2]
[324949438,1714458650834,-913.14,0.00032602,2]
[324949439,1714458650844,-821.39,0.00032602,2]
[324949440,1714458650854,-500.0,0.00032602,2]
[324949441,1714458650863,-500.0,0.00032602,2]
[324949442,1714458650872,-773.57,0.00032602,2]
[324949443,1714458650882,-500.0,0.00032602,2]
[324949444,1714458650891,-528.42534051,0.00032602,2]
[324949445,1714458650901,-500.0,0.00032602,2]
[324949446,1714458650910,-500.0,0.00032602,2]
[324949447,1714458650920,-500.0,0.00032602,2]
[324949448,1714458650929,-500.0,0.00032602,2]
[324949449,1714458650938,-211.77009862,0.00032602,2]
[324949450,1714458650947,-500.0,0.00032602,2]
[324949451,1714458650957,-545.17,0.00032602,2]
[324949452,1714458650966,-500.0,0.00032602,2]
[324949453,1714458650976,-500.0,0.00032602,2]
[324949454,1714458650985,-511.76493726,0.00032602,2]
[324949455,1714458650994,-500.0,0.00032602,2]
[324949456,1714458651004,-500.0,0.00032602,2]
[324949457,1714458651014,-500.0,0.00032602,2]
[324949458,1714458651024,-500.0,0.00032602,2]
[324949459,1714458651034,-500.0,0.00032602,2]
[324949460,1714458651043,-509.5,0.00032602,2]
[324949461,1714458651052,-500.0,0.00032602,2]
[324949462,1714458651062,-708.65,0.00032602,2]
[324949463,1714458651071,-500.0,0.00032602,2]
[324949464,1714458651081,-500.0,0.00032602,2]
[324949465,1714458651090,-655.65,0.00032602,2]
[324949466,1714458651099,-500.0,0.00032602,2]
[324949467,1714458651109,-771.67,0.00032602,2]
[324949468,1714458651118,-500.0,0.00032602,2]
[324949469,1714458651127,-500.0,0.00032602,2]
[324949470,1714458651136,-500.0,0.00032602,2]
[324949471,1714458651145,-500.0,0.00032602,2]
[324949472,1714458651155,-500.0,0.00032602,2]
[324949473,1714458651164,-500.0,0.00032602,2]
[324949474,1714458651173,-500.0,0.00032602,2]
[324949475,1714458651182,-947.45,0.00032602,2]
[324949476,1714458651191,-500.0,0.00032602,2]
[324949477,1714458651200,-500.0,0.00032602,2]
[324949478,1714458651209,-500.0,0.00032602,2]
[324949479,1714458651218,-6642.83,0.00032602,2]
[324949480,1714458651227,-500.0,0.00032602,2]
[324949481,1714458651237,-500.0,0.00032602,2]
[324949482,1714458651246,-500.0,0.00032602,2]
[324949483,1714458651255,-500.0,0.00032602,2]
[324949484,1714458651264,-500.0,0.00032602,2]
[324949485,1714458651273,-500.0,0.00032602,2]
[324949486,1714458651282,-500.0,0.00032602,2]
[324949487,1714458651292,-533.04,0.00032602,2]
[324949488,1714458651301,-500.0,0.00032602,2]
[324949489,1714458651310,-500.0,0.00032602,2]
[324949490,1714458651319,-633.33,0.00032602,2]
[324949491,1714458651328,-589.67,0.00032602,2]
[324949492,1714458651337,-500.0,0.00032602,2]
[324949493,1714458651346,-500.0,0.00032602,2]
[324949494,1714458651354,-500.0,0.00032602,2]
[324949495,1714458651363,-595.39,0.00032602,2]
[324949496,1714458651372,-500.0,0.00032602,2]
[324949497,1714458651381,-500.0,0.00032602,30]
[324949498,1714458651390,-500.0,0.00032602,2]
[324949499,1714458651400,-500.0,0.00032602,2]
[324949500,1714458651409,-500.0,0.00032602,2]
[324949501,1714458651418,-500.0,0.00032602,2]
[324949502,1714458651427,-500.0,0.00032602,2]
[324949503,1714458651437,-157.73975449,0.0003283,7]
[324949504,1714458651446,-500.0,0.00032876,2]
[324949505,1714458651456,-500.0,0.00032876,2]
[324949506,1714458651465,-500.0,0.00032876,2]
[324949507,1714458651474,-285.08228723,0.00032876,2]
[324949508,1714458651484,-500.0,0.00032876,2]
[324949509,1714458651494,-439.83709931,0.00032876,2]
[324949510,1714458651503,-500.0,0.00032876,2]
[324949511,1714458651512,-500.0,0.00032876,2]
[324949512,1714458651521,-535.26162987,0.00032876,2]
[324949513,1714458651530,-500.0,0.00032876,2]
[324949514,1714458651539,-500.0,0.00032876,2]
[324949515,1714458651548,-500.0,0.00032876,2]
[324949516,1714458651558,-500.0,0.00032876,2]
[324949517,1714458651567,-500.0,0.00032876,2]
[324949518,1714458651577,-500.0,0.00032876,2]
[324949519,1714458651587,-546.35,0.00032876,2]
[324949520,1714458651597,-500.0,0.00032876,2]
[324949521,1714458651606,-500.0,0.00032876,2]
[324949522,1714458651616,-500.0,0.00032876,2]
[324949523,1714458651626,-500.0,0.00032876,2]
[324949524,1714458651635,-500.0,0.00032876,2]
[324949525,1714458651644,-500.0,0.00032876,2]
[324949526,1714458651654,-195.95900419,0.00032876,2]
[324949527,1714458651663,-500.0,0.00032876,2]
[324949528,1714458651672,-500.0,0.00032876,2]
[324949529,1714458651713,-500.0,0.00032876,2]
[324949530,1714458651722,-500.0,0.00032876,2]
[324949531,1714458651731,-500.0,0.00032876,2]
[324949532,1714458651740,-500.0,0.00032876,2]
[324949533,1714458651754,-500.0,0.00032876,2]
[324949534,1714458651763,-500.0,0.00032876,2]
[324949535,1714458651772,-500.0,0.00032876,2]
[324949536,1714458651782,-500.0,0.00032876,2]
[324949537,1714458651792,-500.0,0.00032876,2]
[324949538,1714458651803,-500.0,0.00032876,2]
[324949539,1714458651812,-500.0,0.00032876,2]
[324949540,1714458651823,-500.0,0.00032876,2]
[324949541,1714458651833,-500.0,0.00032876,2]
[324949542,1714458651844,-500.0,0.00032876,2]
[324949543,1714458651854,-500.0,0.00032876,2]
[324949544,1714458651864,-500.0,0.00032876,2]
[324949545,1714458651874,-500.0,0.00032876,2]
[324949546,1714458651884,-500.0,0.00032876,2]
[324949547,1714458651895,-500.0,0.00032876,2]
[324949548,1714458651905,-338.22699436,0.00032876,2]
[324949549,1714458651915,-297.56226102,0.00032876,2]
[324949550,1714458651924,-671.33,0.00032876,2]
[324949551,1714458651933,-500.0,0.00032876,2]
[324949552,1714458651942,-593.61,0.00032876,2]
[324949553,1714458651951,-500.0,0.00032876,2]
[324949554,1714458651960,-594.91,0.00032876,2]
[324949555,1714458651969,-500.0,0.00032876,2]
[324949556,1714458651978,-375.67847989,0.00032876,2]
[324949557,1714458651987,-500.0,0.00032876,2]
[324949558,1714458651997,-515.85,0.00032876,2]
[324949559,1714458652008,-500.0,0.00032876,2]
[324949560,1714458652017,-500.0,0.00032876,2]
[324949561,1714458652027,-500.0,0.00032876,2]
[324949562,1714458652036,-500.0,0.00032876,2]
[324949563,1714458652045,-500.0,0.00032876,2]
[324949564,1714458652054,-500.0,0.00032876,2]
[324949565,1714458652063,-637.39,0.00032876,2]
[324949566,1714458652073,-500.0,0.00032876,2]
[324949567,1714458652082,-632.86,0.00032876,2]
[324949568,1714458652091,-500.0,0.00032876,2]
[324949569,1714458652100,-500.0,0.00032876,2]
[324949570,1714458652109,-500.0,0.00032876,2]
[324949571,1714458652118,-500.0,0.00032876,2]
[324949572,1714458652127,-500.0,0.00032876,2]
[324949573,1714458652136,-500.0,0.00032876,2]
[324949574,1714458652145,-500.0,0.00032876,2]
[324949575,1714458652154,-500.0,0.00032876,2]
[324949576,1714458652163,-434.97621626,0.00032876,2]
[324949577,1714458652172,-520.5,0.00032876,2]
[324949578,1714458652181,-500.0,0.00032876,2]
[324949579,1714458652190,-500.0,0.00032876,2]
[324949580,1714458652199,-500.0,0.00032876,2]
[324949581,1714458652209,-500.0,0.00032876,2]
[324949582,1714458652218,-500.0,0.00032876,2]
[324949583,1714458652227,-500.0,0.00032876,2]
[324949584,1714458652236,-500.0,0.00032876,2]
[324949585,1714458652245,-500.0,0.00032876,2]
[324949586,1714458652256,-542.51,0.00032876,2]
[324949587,1714458652266,-500.0,0.00032876,2]
[324949588,1714458652275,-500.0,0.00032876,2]
[324949589,1714458652284,-684.13,0.00032876,2]
[324949590,1714458652293,-500.0,0.00032876,2]
[324949591,1714458652303,-747.58661023,0.00032876,2]
[324949592,1714458652450,-0.00141068,0.00032876,2]
[324949593,1714458652555,-150.0,0.00027779,2]
[324949594,1714458652563,-150.0,0.00030779,2]
[324949595,1714458652572,-1.24211674,0.00032876,2]
[324949600,1714459418051,154.81422293,9.999e-05,2]
[324949648,1714459832871,-154.81422293,0.00014076,2]
[324949650,1714459832881,-375.86689176,0.00014077,2]
[324949652,1714459832892,-1084.67827212,0.00014077,2]
[324949721,1714459839185,-6413.89400228,0.00014077,2]
[324949723,1714459839194,-59218.78804834,0.00014077,2]
[324949725,1714459839204,-24900.0,0.00014081,2]
[324949727,1714459839216,-603.80072889,0.0001426,2]
[324949728,1714459839226,-1355.5673962,0.0001437,2]
[324949731,1714459839236,-255.8520621,0.00014517,2]
[324949732,1714459839247,-168.563871,0.000146,2]
[324949734,1714459839257,-300.0,0.00014728,2]
[324949737,1714459839266,-2101.40475036,0.00015,2]
[324949738,1714459839276,-939.47409396,0.00015,2]
[324949740,1714459839285,-420.0,0.00016201,2]
[324949742,1714459839295,-272.83575254,0.000165,2]
[324949744,1714459839304,-587.0,0.00017821,2]
[324949746,1714459839314,-603.80072882,0.00018337,2]
[324949749,1714459839323,-603.84859883,0.000185,2]
[324949751,1714459839333,-1290.75085475,0.000189,2]
[324949752,1714459839344,-160.375409,0.00019178,2]
[324949754,1714459839355,-160.386525,0.00019178,2]
[324949757,1714459839367,-312.89043206,0.00019298,2]
[324949758,1714459839378,-928.56039633,0.00019299,2]
[324949761,1714459839388,-156619.14454692,0.000193,2]
[324949763,1714459839398,-823.0,0.00019603,2]
[324949764,1714459839407,-154.82968734,0.0002,2]
[324949766,1714459839416,-155.19891575,0.0002,2]
[324949769,1714459839426,-258.1276112,0.0002,2]
[324949770,1714459839435,-300.07781609,0.0002,2]
[324949772,1714459839444,-241.71320654,0.0002,2]
[324949774,1714459839453,-67426.19859378,0.0002,2]
[324949776,1714459839462,-80000.0,0.0002,2]
[324949778,1714459839471,-329.99389325,0.0002,2]
[324949780,1714459839480,-10481.54893926,0.0002,2]
[324949782,1714459839490,-200.0,0.0002,2]
[324949784,1714459839499,-151.48563567,0.0002,2]
[324949786,1714459839508,-154.81422293,0.0002,2]
[324949788,1714459839519,-1152.0,0.00021563,2]
[324949790,1714459839528,-10000.0,0.00021918,2]
[324949805,1714459839686,-159.85,0.00021918,2]
[324949806,1714459839696,-165.17,0.00021918,2]
[324949807,1714459839706,-825.89,0.00021918,2]
[324949808,1714459839715,-305.6041892,0.00022,2]
[324949809,1714459839725,-154.81422293,0.00022,2]
[324949810,1714459839735,-603.80072882,0.00022414,2]
[324949811,1714459839744,-157.365603,0.00022466,2]
[324949812,1714459839753,-288.23028,0.00022466,2]
[324949813,1714459839763,-1370.77204514,0.00023,2]
[324949814,1714459839775,-620.00358674,0.00023408,2]
[324949815,1714459839784,-1613.0,0.0002372,2]
[324949816,1714459839793,-1290.75085475,0.000239,2]
[324949817,1714459839803,-693.45686249,0.00024,2]
[324949818,1714459839812,-335.84639161,0.00024503,2]
[324949819,1714459839822,-620.00017934,0.00024578,2]
[324949820,1714459839831,-157.73975448,0.00024613,2]
[324949821,1714459839841,-500.0,0.00024657,2]
[324949822,1714459839850,-380.0,0.00024658,2]
[324949823,1714459839860,-155.21372883,0.00024815,2]
[324949824,1714459839869,-153.8921486,0.0002483,2]
[324949825,1714459839878,-154.82968734,0.00025,2]
[324949826,1714459839887,-5000.0,0.00025,2]
[324949827,1714459839898,-154.82968734,0.00025,2]
[324949828,1714459839909,-152.79752244,0.00025017,2]
[324949829,1714459839920,-153.8921486,0.00025247,2]
[324949830,1714459839930,-335.84639161,0.00025281,2]
[324949831,1714459839939,-620.00000002,0.00025456,2]
[324949832,1714459839948,-155.21372883,0.00025644,2]
[324949833,1714459839959,-620.00000897,0.00025807,2]
[324949834,1714459839970,-335.84639161,0.00025907,2]
[324949835,1714459839979,-335.84639161,0.00026079,2]
[324949836,1714459839991,-2258.0,0.00026092,2]
[324949837,1714459840000,-152.90057792,0.0002622,2]
[324949838,1714459840010,-152.90057792,0.00026294,2]
[324949839,1714459840021,-603.80072882,0.00026491,3]
[324949840,1714459840030,-335.84639161,0.0002652,2]
[324949841,1714459840039,-151.0,0.000266,120]
[324949842,1714459840048,-620.0,0.00026728,2]
[324949843,1714459840059,-158.32775516,0.00026835,2]
[324949844,1714459840069,-5000.0,0.000269,2]
[324949845,1714459840079,-8529.21181525,0.00027,2]
[324949846,1714459840089,-620.00000045,0.00027098,2]
[324949847,1714459840098,-335.84639161,0.00027297,2]
[324949848,1714459840107,-166.666666,0.00027397,2]
[324949849,1714459840117,-154.81422293,0.000274,2]
[324949850,1714459840126,-155.21372883,0.00027662,2]
[324949851,1714459840141,-152.90057792,0.0002769,2]
[324949852,1714459840151,-417.0,0.00027886,2]
[324949853,1714459840160,-150.0,0.00027886,2]
[324949854,1714459840170,-150.0,0.00027886,2]
[324949855,1714459840180,-152.79752244,0.0002794,2]
[324949856,1714459840190,-220.93587945,0.00028,2]
[324949857,1714459840199,-166.666666,0.00028038,2]
[324949858,1714459840209,-620.0,0.00028065,2]
[324949859,1714459840219,-157.73975448,0.00028076,2]
[324949860,1714459840228,-152.79752244,0.00028086,2]
[324949861,1714459840237,-335.84639161,0.00028086,2]
[324949862,1714459840247,-152.90057792,0.00028115,2]
[324949863,1714459840256,-152.90057792,0.00028116,2]
[324949864,1714459840265,-152.79752244,0.0002823,2]
[324949865,1714459840275,-335.84639161,0.00028241,2]
[324949866,1714459840284,-150.0,0.00028338,3]
[324949867,1714459840294,-2518.6711,0.00028412,30]
[324949868,1714459840304,-620.00000002,0.00028453,2]
[324949869,1714459840313,-288.23028,0.00028493,2]
[324949870,1714459840323,-166.666666,0.00028679,2]
[324949871,1714459840332,-3162.0,0.00028701,2]
[324949872,1714459840341,-335.84639161,0.0002883,2]
[324949873,1714459840351,-1290.75085475,0.000289,2]
[324949874,1714459840360,-152.90057792,0.00029075,2]
[324949875,1714459840369,-157.73975448,0.00029115,2]
[324949876,1714459840378,-152.79752244,0.00029298,2]
[324949877,1714459840387,-166.666666,0.00029321,2]
[324949878,1714459840396,-335.84639161,0.00029387,2]
[324949879,1714459840406,-620.0,0.00029468,2]
[324949880,1714459840415,-155.21372883,0.00029585,2]
[324949881,1714459840425,-153.8921486,0.0002961,2]
[324949882,1714459840434,-150.53295523,0.00029875,2]
[324949883,1714459840443,-166.666666,0.00029962,2]
[324949884,1714459840453,-154.82968734,0.0003,4]
[324949885,1714459840463,-1330.0170423,0.0003,4]
[324949886,1714459840472,-212.54437456,0.0003,4]
[324949887,1714459840481,-188.46262606,0.0003,4]
[324949888,1714459840492,-168.0,0.0003,2]
[324949889,1714459840501,-155.21372883,0.0003012,7]
[324949890,1714459840511,-32707.32364514,0.00030176,7]
[324949891,1714459840520,-155.21372883,0.00030224,7]
[324949892,1714459840529,-335.84639161,0.00030546,7]
[324949893,1714459840538,-603.80072882,0.00030569,5]
[324949894,1714459840548,-335.84639161,0.00030572,7]
[324949895,1714459840557,-155.21372883,0.00030598,7]
[324949896,1714459840566,-166.666666,0.00030603,2]
[324949897,1714459840575,-155.21372883,0.00030669,7]
[324949898,1714459840584,-150.0,0.00030875,2]
[324949899,1714459840593,-417.0,0.00030886,2]
[324949900,1714459840602,-150.0,0.00030886,2]
[324949901,1714459840611,-155.21372883,0.00030917,7]
[324949902,1714459840620,-620.0,0.00030941,2]
[324949903,1714459840629,-155.21372883,0.00031052,7]
[324949905,1714459840639,-588.0,0.000311,2]
[324949907,1714459840648,-335.84639161,0.00031195,7]
[324949908,1714459840657,-152.90057792,0.00031292,7]
[324949909,1714459840666,-155.21372883,0.00031423,7]
[324949910,1714459840676,-153.8921486,0.0003143,7]
[324949911,1714459840685,-2517.0,0.00031571,2]
[324949912,1714459840695,-152.90057792,0.00031642,7]
[324949913,1714459840704,-157.73975448,0.00031642,7]
[324949914,1714459840713,-44444.0,0.0003168,3]
[324949915,1714459840722,-500.0,0.0003178,2]
[324949916,1714459840731,-500.0,0.0003178,2]
[324949917,1714459840741,-407.86654599,0.0003178,2]
[324949918,1714459840750,-337.60044881,0.0003178,2]
[324949919,1714459840759,-500.0,0.0003178,2]
[324949920,1714459840770,-500.0,0.0003178,2]
[324949921,1714459840779,-500.0,0.0003178,2]
[324949922,1714459840788,-500.0,0.0003178,2]
[324949923,1714459840797,-500.0,0.0003178,2]
[324949924,1714459840807,-500.0,0.0003178,2]
[324949925,1714459840816,-500.0,0.0003178,2]
[324949926,1714459840826,-500.0,0.0003178,2]
[324949927,1714459840835,-500.0,0.0003178,2]
[324949928,1714459840844,-500.0,0.0003178,2]
[324949929,1714459840854,-500.0,0.0003178,2]
[324949930,1714459840864,-500.0,0.0003178,2]
[324949931,1714459840874,-500.0,0.0003178,2]
[324949932,1714459840883,-500.0,0.0003178,2]
[324949933,1714459840893,-500.0,0.0003178,2]
[324949934,1714459840902,-500.0,0.0003178,2]
[324949935,1714459840912,-500.0,0.0003178,2]
[324949936,1714459840921,-500.0,0.0003178,2]
[324949937,1714459840931,-500.0,0.0003178,2]
[324949938,1714459840940,-500.0,0.0003178,2]
[324949939,1714459840949,-500.0,0.0003178,2]
[324949940,1714459840958,-500.0,0.0003178,2]
[324949941,1714459840967,-500.0,0.0003178,2]
[324949943,1714459840976,-559.27819324,0.0003178,2]
[324949945,1714459840985,-500.0,0.0003178,2]
[324949947,1714459840995,-500.0,0.0003178,2]
[324949948,1714459841004,-500.0,0.0003178,2]
[324949950,1714459841013,-201.13962678,0.0003178,2]
[324949952,1714459841023,-500.0,0.0003178,2]
[324949954,1714459841032,-500.0,0.0003178,2]
[324949956,1714459841042,-500.0,0.0003178,2]
[324949958,1714459841051,-500.0,0.0003178,2]
[324949960,1714459841060,-500.0,0.0003178,2]
[324949962,1714459841070,-500.0,0.0003178,2]
[324949963,1714459841078,-500.0,0.0003178,2]
[324949965,1714459841087,-500.0,0.0003178,2]
[324949966,1714459841097,-501.58156019,0.0003178,2]
[324949967,1714459841106,-500.0,0.0003178,2]
[324949968,1714459841115,-500.0,0.0003178,2]
[324949969,1714459841125,-500.0,0.0003178,2]
[324949970,1714459841138,-500.0,0.0003178,2]
[324949971,1714459841147,-500.0,0.0003178,2]
[324949972,1714459841157,-500.0,0.0003178,2]
[324949973,1714459841167,-500.0,0.0003178,2]
[324949974,1714459841177,-500.0,0.0003178,2]
[324949975,1714459841186,-500.0,0.0003178,2]
[324949976,1714459841195,-500.0,0.0003178,2]
[324949977,1714459841204,-428.95152644,0.0003178,2]
[324949978,1714459841216,-518.91878986,0.0003178,2]
[324949979,1714459841226,-796.24,0.0003178,2]
[324949980,1714459841235,-500.0,0.0003178,14]
[324949981,1714459841244,-726.35,0.0003178,2]
[324949982,1714459841253,-500.0,0.0003178,2]
[324949983,1714459841262,-708.32,0.0003178,2]
[324949984,1714459841274,-500.0,0.0003178,2]
[324949985,1714459841284,-500.0,0.0003178,2]
[324949986,1714459841294,-500.0,0.0003178,2]
[324949987,1714459841304,-617.75,0.0003178,2]
[324949988,1714459841313,-500.0,0.0003178,2]
[324949989,1714459841323,-500.0,0.0003178,2]
[324949990,1714459841332,-500.0,0.0003178,2]
[324949991,1714459841341,-500.0,0.0003178,2]
[324949992,1714459841350,-500.0,0.0003178,2]
[324949993,1714459841359,-500.0,0.0003178,2]
[324949994,1714459841369,-500.0,0.0003178,2]
[324949995,1714459841378,-500.0,0.0003178,2]
[324949996,1714459841387,-500.0,0.0003178,2]
[324949997,1714459841396,-500.0,0.0003178,2]
[324949998,1714459841405,-500.0,0.0003178,2]
[324950000,1714459841415,-500.0,0.0003178,2]
[324950002,1714459841423,-504.7752951,0.0003178,2]
[324950003,1714459841433,-500.0,0.0003178,2]
[324950005,1714459841442,-500.0,0.0003178,2]
[324950006,1714459841451,-500.0,0.0003178,2]
[324950008,1714459841460,-500.0,0.0003178,2]
[324950010,1714459841469,-500.0,0.0003178,2]
[324950012,1714459841478,-500.0,0.0003178,2]
[324950013,1714459841487,-500.0,0.0003178,2]
[324950015,1714459841497,-500.0,0.0003178,2]
[324950017,1714459841506,-500.0,0.0003178,2]
[324950019,1714459841516,-500.0,0.0003178,2]
[324950020,1714459841525,-566.94421964,0.0003178,2]
[324950021,1714459841534,-509.01477066,0.0003178,2]
[324950022,1714459841543,-500.0,0.0003178,2]
[324950023,1714459841553,-500.0,0.0003178,2]
[324950024,1714459841562,-500.0,0.0003178,2]
[324950025,1714459841571,-500.0,0.0003178,2]
[324950026,1714459841580,-517.81,0.0003178,2]
[324950027,1714459841590,-500.0,0.0003178,2]
[324950028,1714459841599,-500.0,0.0003178,2]
[324950029,1714459841608,-500.0,0.0003178,2]
[324950030,1714459841617,-593.96,0.0003178,2]
[324950031,1714459841626,-500.0,0.0003178,2]
[324950032,1714459841636,-500.0,0.0003178,2]
[324950033,1714459841645,-825.17,0.0003178,2]
[324950034,1714459841655,-500.0,0.0003178,2]
[324950035,1714459841664,-500.0,0.0003178,2]
[324950036,1714459841674,-500.0,0.0003178,2]
[324950037,1714459841683,-500.0,0.0003178,2]
[324950038,1714459841692,-500.0,0.0003178,2]
[324950039,1714459841701,-500.0,0.0003178,2]
[324950040,1714459841710,-512.62,0.0003178,2]
[324950041,1714459841720,-500.0,0.0003178,2]